bitfinex/quotes_BTCUSD_20230118
["timestamp","ask_amount","ask_price","bid_price","bid_amount"]
[1674034504289,0.009,21236.0,21235.0,0.19072595]
[1674034504505,0.470866,21238.0,21235.0,0.1102]
[1674034504730,0.77733681,21239.0,21235.0,0.1102]
[1674034504960,1.24816781,21239.0,21235.0,0.30092595]
[1674034505180,0.29945522,21237.0,21235.0,0.588111]
[1674034505392,0.29945522,21237.0,21235.0,0.1102]
[1674034505788,0.470862,21238.0,21235.0,0.1102]
[1674034506320,0.79226751,21239.0,21235.0,0.1102]
[1674034506572,0.47179315,21239.0,21235.0,0.77184395]
[1674034506819,0.00096215,21239.0,21236.0,0.00024553]
[1674034507067,0.008,21238.0,21237.0,0.1109]
[1674034507329,0.00096215,21239.0,21237.0,0.1109]
[1674034507584,0.470827,21240.0,21237.0,0.1109]
[1674034508073,0.74566111,21241.0,21237.0,0.582772]
[1674034508397,0.74566111,21241.0,21237.0,0.77349795]
[1674034508696,0.74566111,21241.0,21237.0,0.77449795]
[1674034508940,0.27486811,21241.0,21237.0,0.77449795]
[1674034509397,0.27486811,21241.0,21239.0,0.1102]
[1674034510893,0.28286811,21241.0,21239.0,0.1172]
[1674034511092,0.28286811,21241.0,21239.0,0.11764029]
[1674034511569,0.28286811,21241.0,21239.0,0.1172]
[1674034512966,0.28286811,21241.0,21239.0,0.00744029]
[1674034513907,0.28286811,21241.0,21239.0,0.007]
[1674034515152,0.28286811,21241.0,21239.0,0.00767353]
[1674034515388,0.28286811,21241.0,21239.0,0.007]
[1674034515632,1.7016468,21241.0,21239.0,0.007]
[1674034515876,0.474731,21240.0,21239.0,0.007]
[1674034516110,1.091618,21240.0,21239.0,0.007]
[1674034516649,1.415936,21240.0,21239.0,0.007]
[1674034516889,2.71308599,21240.0,21239.0,0.007]
[1674034517124,3.14271577,21240.0,21234.0,1.083822]
[1674034517370,1.52924778,21240.0,21239.0,0.007]
[1674034517606,2.4711368,21240.0,21239.0,0.007]
[1674034517805,2.7934968,21240.0,21239.0,0.007]
[1674034518081,1.88350702,21240.0,21234.0,1.083822]
[1674034518325,1.88350702,21240.0,21234.0,1.35854795]
[1674034518326,1.2978986,21240.0,21234.0,1.35854795]
[1674034518554,1.2978986,21240.0,21234.0,0.80362595]
[1674034518797,1.3058986,21240.0,21239.0,0.007]
[1674034519036,2.1981571,21240.0,21234.0,0.80362595]
[1674034519275,0.68441605,21239.0,21234.0,0.88762595]
[1674034519517,0.470861,21238.0,21234.0,0.6969]
[1674034519749,0.470861,21238.0,21234.0,0.6129]
[1674034519988,0.470861,21238.0,21234.0,0.61282337]
[1674034520309,0.33012692,21239.0,21235.0,0.470916]
[1674034520506,0.470854,21238.0,21234.0,1.08374737]
[1674034520734,0.470854,21238.0,21234.0,0.61282337]
[1674034521192,0.470854,21238.0,21234.0,0.80354932]
[1674034521775,0.471854,21238.0,21234.0,1.35848132]
[1674034522194,0.001,21238.0,21234.0,1.63869737]
[1674034522917,0.34800929,21237.0,21234.0,0.084]
[1674034523152,0.81888929,21237.0,21234.0,0.084]
[1674034523385,1.28976529,21237.0,21234.0,0.084]
[1674034523620,1.75574589,21237.0,21234.0,0.084]
[1674034523868,1.75574589,21237.0,21232.0,0.1109]
[1674034523869,2.092219,21237.0,21232.0,0.1109]
[1674034524129,0.4661806,21236.0,21231.0,0.470994]
[1674034524372,1.5580026,21236.0,21234.0,0.078]
[1674034524600,0.35778727,21235.0,21234.0,0.078]
[1674034524797,0.35778727,21235.0,21231.0,0.470994]
[1674034525263,0.35778727,21235.0,21231.0,0.547994]
[1674034525499,0.35778727,21235.0,21231.0,0.470994]
[1674034525731,0.37278727,21235.0,21234.0,0.006]
[1674034525979,0.37278727,21235.0,21232.0,0.470981]
[1674034525980,0.35778727,21235.0,21232.0,0.470981]
[1674034527234,0.35778727,21235.0,21231.0,0.66173495]
[1674034527476,0.35878727,21235.0,21231.0,0.548009]
[1674034527702,0.50878727,21235.0,21231.0,0.548009]
[1674034527965,0.35778727,21235.0,21231.0,0.471009]
[1674034528196,0.470943,21234.0,21232.0,0.005]
[1674034528436,0.470943,21234.0,21230.0,0.96143943]
[1674034528713,1.07998245,21235.0,21231.0,0.077]
[1674034528948,1.07998245,21235.0,21230.0,1.15216838]
[1674034528949,1.07898245,21235.0,21230.0,1.15216838]
[1674034529189,1.43426305,21235.0,21232.0,0.005]
[1674034529434,1.37513527,21235.0,21232.0,0.005]
[1674034530154,0.3552806,21234.0,21230.0,0.01941543]
[1674034530408,0.470969,21233.0,21231.0,0.077]
[1674034530646,0.470969,21233.0,21230.0,0.01941543]
[1674034530882,0.470969,21233.0,21232.0,0.005]
[1674034531119,0.470969,21233.0,21230.0,0.01941543]
[1674034531918,0.942934,21233.0,21231.0,0.077]
[1674034532162,0.941934,21233.0,21230.0,0.01941543]
[1674034532449,1.2972146,21233.0,21230.0,0.01941543]
[1674034532703,0.35237217,21232.0,21230.0,0.01941543]
[1674034532917,0.83530553,21232.0,21230.0,0.01941543]
[1674034533154,1.66157313,21232.0,21230.0,0.01941543]
[1674034534177,1.66257313,21232.0,21230.0,0.09741543]
[1674034535107,2.36823053,21232.0,21230.0,0.09741543]
[1674034535343,0.400484,21231.0,21230.0,0.09741543]
[1674034535626,1.6977826,21231.0,21230.0,0.09741543]
[1674034535866,1.6226826,21231.0,21230.0,0.09741543]
[1674034536111,1.3719986,21231.0,21230.0,0.09741543]
[1674034536347,1.3719986,21231.0,21230.0,0.01941543]
[1674034536348,2.38070835,21231.0,21230.0,0.01941543]
[1674034536588,2.20377829,21231.0,21230.0,0.02541543]
[1674034536819,2.29017286,21231.0,21230.0,0.02541543]
[1674034537824,2.14077286,21231.0,21230.0,0.02541543]
[1674034540478,2.21627286,21231.0,21230.0,0.02541543]
[1674034540722,2.20627286,21231.0,21230.0,0.02541543]
[1674034541419,2.75268186,21231.0,21230.0,0.02541543]
[1674034541659,3.05268186,21231.0,21230.0,0.02541543]
[1674034541900,3.40240916,21231.0,21230.0,0.02541543]
[1674034542527,3.44943821,21231.0,21230.0,0.02541543]
[1674034543057,4.14943822,21231.0,21230.0,0.02541543]
[1674034545142,3.84943822,21231.0,21230.0,0.02541543]
[1674034545404,3.80240917,21231.0,21230.0,0.02541543]
[1674034545974,3.80240917,21231.0,21230.0,0.01941543]
[1674034545975,3.77640917,21231.0,21230.0,0.01941543]
[1674034546227,3.85640917,21231.0,21230.0,0.02041543]
[1674034546478,3.77640917,21231.0,21230.0,0.01941543]
[1674034546723,3.07640916,21231.0,21230.0,0.01941543]
[1674034547193,3.47405878,21231.0,21230.0,0.01941543]
[1674034547723,3.45640916,21231.0,21230.0,0.02041543]
[1674034547984,3.15640916,21231.0,21230.0,0.02041543]
[1674034548515,2.72562856,21231.0,21230.0,0.02041543]
[1674034549053,1.91053987,21231.0,21230.0,0.02041543]
[1674034550962,1.83053987,21231.0,21230.0,0.01941543]
[1674034551246,2.11534026,21231.0,21230.0,0.01941543]
[1674034551509,1.90353987,21231.0,21230.0,0.02141543]
[1674034551769,1.83053987,21231.0,21230.0,0.01941543]
[1674034552029,1.90353987,21231.0,21230.0,0.02141543]
[1674034552292,1.83053987,21231.0,21230.0,0.01941543]
[1674034552466,1.90353987,21231.0,21230.0,0.02141543]
[1674034556729,1.43253087,21231.0,21230.0,0.02141543]
[1674034557256,0.97152187,21231.0,21230.0,0.02141543]
[1674034557567,1.91353987,21231.0,21230.0,0.02141543]
[1674034560673,1.44253087,21231.0,21230.0,0.02141543]
[1674034561189,1.91353987,21231.0,21230.0,0.02141543]
[1674034561453,1.89166136,21231.0,21230.0,0.02141543]
[1674034562986,2.21517436,21231.0,21230.0,0.02141543]
[1674034563235,1.89166136,21231.0,21230.0,0.02141543]
[1674034563906,2.20077136,21231.0,21230.0,0.02141543]
[1674034564165,2.20062536,21231.0,21230.0,0.02141543]
[1674034564421,1.89166136,21231.0,21230.0,0.02141543]
[1674034564935,1.42065236,21231.0,21230.0,0.02141543]
[1674034565965,1.89166136,21231.0,21230.0,0.02141543]
[1674034568470,2.83390034,21231.0,21230.0,0.02141543]
[1674034568735,3.15810034,21231.0,21230.0,0.02141543]
[1674034569291,2.83390034,21231.0,21230.0,0.02141543]
[1674034569756,3.15554334,21231.0,21230.0,0.02141543]
[1674034570025,3.15085734,21231.0,21230.0,0.02141543]
[1674034571070,4.10141128,21231.0,21230.0,0.02141543]
[1674034571342,4.7578684,21231.0,21230.0,0.02141543]
[1674034571599,4.47241515,21231.0,21230.0,0.02141543]
[1674034572149,4.30372088,21231.0,21230.0,0.02141543]
[1674034572429,4.58482863,21231.0,21230.0,0.02141543]
[1674034572686,5.28482864,21231.0,21230.0,0.02141543]
[1674034573294,5.05996679,21231.0,21230.0,0.02141543]
[1674034573833,5.28491855,21231.0,21230.0,0.02141543]
[1674034574102,5.40462749,21231.0,21230.0,0.02141543]
[1674034574927,4.98489906,21231.0,21230.0,0.02141543]
[1674034575199,4.70379131,21231.0,21230.0,0.02141543]
[1674034575469,4.87250744,21231.0,21230.0,0.02141543]
[1674034576016,5.17250831,21231.0,21230.0,0.02141543]
[1674034576249,5.28491819,21231.0,21230.0,0.02141543]
[1674034576788,5.05996679,21231.0,21230.0,0.02141543]
[1674034577311,5.28488155,21231.0,21230.0,0.02141543]
[1674034577546,4.98488155,21231.0,21230.0,0.02141543]
[1674034577807,5.1945256,21231.0,21230.0,0.02141543]
[1674034578106,6.880435,21231.0,21230.0,0.02141543]
[1674034578584,5.51386046,21231.0,21230.0,0.02141543]
[1674034578847,4.75335829,21231.0,21230.0,0.02141543]
[1674034579413,4.9593208,21231.0,21230.0,0.02141543]
[1674034579643,4.98741423,21231.0,21230.0,0.02141543]
[1674034579931,4.68741423,21231.0,21230.0,0.02141543]
[1674034580177,4.91227393,21231.0,21230.0,0.02141543]
[1674034580434,4.42457525,21231.0,21230.0,0.02141543]
[1674034580740,4.64943495,21231.0,21230.0,0.02141543]
[1674034582269,3.72457524,21231.0,21230.0,0.02141543]
[1674034582549,4.31111393,21231.0,21230.0,0.02141543]
[1674034582799,4.09963066,21231.0,21230.0,0.02141543]
[1674034583876,4.09963066,21231.0,21230.0,0.02133204]
[1674034584959,3.93098893,21231.0,21230.0,0.02133204]
[1674034585221,3.85548893,21231.0,21230.0,0.02133204]
[1674034585744,4.32414112,21231.0,21230.0,0.02133204]
[1674034586064,4.15548893,21231.0,21230.0,0.02133204]
[1674034586262,4.43657392,21231.0,21230.0,0.02133204]
[1674034586739,4.78581462,21231.0,21230.0,0.02133204]
[1674034587030,4.56095492,21231.0,21230.0,0.02133204]
[1674034588272,5.26095493,21231.0,21230.0,0.02133204]
[1674034588786,5.26094241,21231.0,21230.0,0.02133204]
[1674034589045,4.91170171,21231.0,21230.0,0.02133204]
[1674034589301,4.61170171,21231.0,21230.0,0.02133204]
[1674034589834,3.85549176,21231.0,21230.0,0.02133204]
[1674034590345,4.13656223,21231.0,21230.0,0.02133204]
[1674034590602,3.91172196,21231.0,21230.0,0.02133204]
[1674034590882,3.91172969,21231.0,21230.0,0.02133204]
[1674034591176,3.94944403,21231.0,21230.0,0.02133204]
[1674034591442,3.7245835,21231.0,21230.0,0.02133204]
[1674034591993,3.35141426,21231.0,21230.0,0.02133204]
[1674034592021,3.0840007,21231.0,21230.0,0.02133204]
[1674034592268,3.0840007,21231.0,21227.0,0.15]
[1674034592269,2.49435698,21231.0,21227.0,0.27076878]
[1674034592673,1.552118,21231.0,21227.0,0.27076878]
[1674034592950,1.42118438,21230.0,21226.0,0.01801955]
[1674034593224,1.88444608,21229.0,21226.0,0.01801955]
[1674034593484,0.942111,21229.0,21226.0,0.01801955]
[1674034593747,0.942111,21229.0,21227.0,0.002]
[1674034594014,0.942111,21229.0,21226.0,0.01801955]
[1674034594280,1.38813161,21229.0,21226.0,0.03401955]
[1674034594546,0.94235131,21228.0,21226.0,0.01801955]
[1674034594803,0.942166,21228.0,21226.0,0.03401955]
[1674034596436,0.942166,21228.0,21226.0,0.01801955]
[1674034596701,0.947166,21228.0,21226.0,0.03401955]
[1674034597530,1.15373826,21228.0,21226.0,0.03401955]
[1674034598347,0.947166,21228.0,21226.0,0.03401955]
[1674034598878,0.37010275,21227.0,21226.0,0.03401955]
[1674034599366,1.31229875,21227.0,21226.0,0.03401955]
[1674034599666,2.36715796,21227.0,21226.0,0.03401955]
[1674034599926,2.68842596,21227.0,21226.0,0.03401955]
[1674034600185,3.04827931,21227.0,21226.0,0.03401955]
[1674034600456,3.16539965,21227.0,21226.0,0.05001955]
[1674034600713,3.01801392,21227.0,21226.0,0.05001955]
[1674034600968,3.34219892,21227.0,21226.0,0.05001955]
[1674034601229,3.17354465,21227.0,21226.0,0.05001955]
[1674034601496,3.37967406,21227.0,21226.0,0.05001955]
[1674034601779,3.81504018,21227.0,21226.0,0.05001955]
[1674034602020,4.30295759,21227.0,21226.0,0.05001955]
[1674034602303,4.19051526,21227.0,21226.0,0.05001955]
[1674034602544,4.66161326,21227.0,21226.0,0.05001955]
[1674034603102,4.88140593,21227.0,21226.0,0.01801955]
[1674034603362,4.46893044,21227.0,21226.0,0.02001955]
[1674034603634,4.54393044,21227.0,21226.0,0.02001955]
[1674034603893,4.84393044,21227.0,21226.0,0.02001955]
[1674034604472,4.31913777,21227.0,21226.0,0.02001955]
[1674034604781,4.73152801,21227.0,21226.0,0.02001955]
[1674034605067,4.84393044,21227.0,21226.0,0.02001955]
[1674034605323,4.67533346,21227.0,21226.0,0.02001955]
[1674034605591,4.84391554,21227.0,21226.0,0.02001955]
[1674034605866,4.95640593,21227.0,21226.0,0.02001955]
[1674034606634,4.65640593,21227.0,21226.0,0.02001955]
[1674034606911,4.48230376,21227.0,21226.0,0.02001955]
[1674034607182,4.20123129,21227.0,21226.0,0.02001955]
[1674034607734,3.90123129,21227.0,21226.0,0.02001955]
[1674034607993,4.06981103,21227.0,21226.0,0.02001955]
[1674034608256,4.14501836,21227.0,21226.0,0.02001955]
[1674034608516,4.06981103,21227.0,21226.0,0.02001955]
[1674034608756,4.36981103,21227.0,21226.0,0.02001955]
[1674034609261,4.06981103,21227.0,21226.0,0.02001955]
[1674034609835,4.45054079,21227.0,21226.0,0.02001955]
[1674034610130,4.25738069,21227.0,21226.0,0.02001955]
[1674034610390,3.90119889,21227.0,21226.0,0.02001955]
[1674034610656,3.76951754,21227.0,21226.0,0.02001955]
[1674034610912,3.99427781,21227.0,21226.0,0.02001955]
[1674034611964,4.10664096,21227.0,21226.0,0.02001955]
[1674034612546,3.50277589,21227.0,21226.0,0.02001955]
[1674034612770,3.71748158,21227.0,21226.0,0.02001955]
[1674034613076,3.71499258,21227.0,21226.0,0.02001955]
[1674034613330,3.27801562,21227.0,21226.0,0.02001955]
[1674034613605,3.71118758,21227.0,21226.0,0.019936]
[1674034613872,3.12771562,21227.0,21226.0,0.019936]
[1674034614151,2.91929158,21227.0,21226.0,0.019936]
[1674034615156,2.32971593,21227.0,21226.0,0.019936]
[1674034615158,1.38729875,21227.0,21226.0,0.019936]
[1674034615429,0.91620075,21227.0,21226.0,0.019936]
[1674034617289,1.38729875,21227.0,21226.0,0.019936]
[1674034617572,2.32973347,21227.0,21226.0,0.019936]
[1674034617841,1.85863547,21227.0,21226.0,0.019936]
[1674034618116,0.075,21227.0,21226.0,0.019936]
[1674034624452,0.075,21227.0,21226.0,0.491056]
[1674034624731,1e-08,21227.0,21226.0,1.71655199]
[1674034624986,1e-08,21227.0,21226.0,1.52582604]
[1674034625595,0.5371,21231.0,21226.0,1.69678311]
[1674034625764,0.5371,21231.0,21227.0,0.49072595]
[1674034626075,0.5371,21231.0,21229.0,0.0755]
[1674034626348,0.5371,21231.0,21229.0,0.546543]
[1674034626622,0.5371,21231.0,21229.0,0.54758634]
[1674034628237,0.5371,21231.0,21229.0,1.01863934]
[1674034628511,0.5371,21231.0,21230.0,0.3749]
[1674034628787,0.5371,21231.0,21230.0,1.466962]
[1674034629045,0.5371,21231.0,21230.0,1.316962]
[1674034629583,0.5371,21231.0,21230.0,1.020962]
[1674034630434,0.5242,21231.0,21230.0,1.020962]
[1674034630704,0.5242,21231.0,21230.0,0.549931]
[1674034631787,0.5242,21231.0,21230.0,0.004]
[1674034631788,0.52411611,21231.0,21230.0,0.004]
[1674034633678,0.52411611,21231.0,21230.0,0.10747]
[1674034634194,0.49911611,21231.0,21230.0,0.10747]
[1674034634458,0.49911611,21231.0,21230.0,0.004]
[1674034640590,0.64911611,21231.0,21230.0,0.004]
[1674034641030,0.49911611,21231.0,21230.0,0.004]
[1674034641540,0.97012511,21231.0,21230.0,0.004]
[1674034642098,0.49911611,21231.0,21230.0,0.10755643]
[1674034642353,0.49911611,21231.0,21230.0,0.10747]
[1674034643158,0.49911611,21231.0,21230.0,0.004]
[1674034643416,0.49911611,21231.0,21230.0,0.10747]
[1674034643675,0.49911611,21231.0,21230.0,0.00408643]
[1674034643944,0.49911611,21231.0,21230.0,0.004]
[1674034645020,0.49911611,21231.0,21230.0,0.00408643]
[1674034645326,0.49911611,21231.0,21230.0,0.004]
[1674034645613,0.49911611,21231.0,21230.0,0.10747]
[1674034649455,0.49911611,21231.0,21230.0,0.18245643]
[1674034649736,0.49911611,21231.0,21230.0,0.65348743]
[1674034649996,0.49911611,21231.0,21230.0,1.12451843]
[1674034652791,0.49911611,21231.0,21230.0,1.42451843]
[1674034654856,0.00097538,21235.0,21231.0,0.2255]
[1674034655111,0.00097538,21235.0,21232.0,0.73700795]
[1674034655899,0.00097538,21235.0,21232.0,0.546282]
[1674034657035,0.00097538,21235.0,21232.0,0.0753]
[1674034657300,0.00297538,21235.0,21232.0,0.0823]
[1674034657828,0.77387443,21235.0,21232.0,0.007]
[1674034658394,1.24479443,21235.0,21232.0,0.007]
[1674034658695,1.24479443,21235.0,21230.0,0.471013]
[1674034658696,1.24479443,21235.0,21230.0,0.28527701]
[1674034658961,0.77387443,21235.0,21231.0,0.0755]
[1674034659227,1.24479443,21235.0,21232.0,0.00172866]
[1674034659498,1.24279443,21235.0,21232.0,0.00172866]
[1674034659762,0.77987443,21235.0,21232.0,0.00172866]
[1674034660022,0.77187443,21235.0,21231.0,0.73723295]
[1674034660281,0.77987443,21235.0,21232.0,0.00872866]
[1674034660545,0.77987443,21235.0,21232.0,0.007]
[1674034661076,1.25707612,21235.0,21232.0,0.007]
[1674034661374,0.94214292,21234.0,21232.0,0.007]
[1674034661593,0.329494,21233.0,21232.0,0.007]
[1674034661845,2.54354232,21233.0,21232.0,0.007]
[1674034662181,2.21404832,21233.0,21232.0,0.007]
[1674034662373,2.64945628,21233.0,21232.0,0.007]
[1674034662650,2.64945628,21233.0,21227.0,1.167659]
[1674034662920,2.64945628,21233.0,21232.0,0.007]
[1674034662921,1.2799054,21233.0,21232.0,0.007]
[1674034663185,2.22208476,21233.0,21232.0,0.007]
[1674034663718,2.33445872,21233.0,21232.0,0.007]
[1674034663990,2.65998772,21233.0,21232.0,0.007]
[1674034664239,2.65198772,21233.0,21227.0,1.35838995]
[1674034664500,0.94217936,21232.0,21227.0,0.0755]
[1674034665042,0.471016,21231.0,21227.0,0.0755]
[1674034665310,0.471016,21231.0,21227.0,0.1595]
[1674034665552,0.471016,21231.0,21227.0,0.0755]
[1674034665807,0.471016,21231.0,21227.0,0.1595]
[1674034666066,0.471016,21231.0,21227.0,0.0755]
[1674034666339,0.472016,21231.0,21227.0,0.1595]
[1674034667435,0.472016,21231.0,21228.0,8.644e-05]
[1674034667877,0.472016,21231.0,21227.0,0.1595]
[1674034668181,0.472016,21231.0,21227.0,0.82131995]
[1674034668519,0.472016,21231.0,21228.0,8.644e-05]
[1674034668520,0.471016,21231.0,21228.0,8.644e-05]
[1674034668777,0.472016,21231.0,21228.0,0.08508644]
[1674034669029,0.471016,21231.0,21228.0,8.644e-05]
[1674034669307,0.001,21231.0,21228.0,8.644e-05]
[1674034669542,0.58437647,21232.0,21228.0,8.644e-05]
[1674034669796,0.471009,21231.0,21227.0,0.546594]
[1674034670074,0.472009,21231.0,21228.0,0.08508644]
[1674034671053,0.001,21231.0,21228.0,0.08508644]
[1674034671361,0.47200251,21232.0,21228.0,8.644e-05]
[1674034671568,0.001,21231.0,21228.0,0.19081239]
[1674034671834,0.47200251,21232.0,21228.0,8.644e-05]
[1674034672076,0.001,21231.0,21228.0,0.08508644]
[1674034675730,0.001,21231.0,21228.0,0.085]
[1674034675972,0.35787023,21231.0,21228.0,0.085]
[1674034677019,0.35787023,21231.0,21228.0,0.08513825]
[1674034677762,0.35787023,21231.0,21228.0,0.085]
[1674034679356,0.82888123,21231.0,21228.0,0.085]
[1674034679616,1.29989023,21231.0,21228.0,0.085]
[1674034680140,1.41226419,21231.0,21228.0,0.085]
[1674034680418,1.25545312,21230.0,21228.0,0.08491247]
[1674034680667,2.2072404,21229.0,21228.0,0.08491247]
[1674034680952,1.8844194,21229.0,21228.0,0.08491247]
[1674034681248,2.1875464,21229.0,21228.0,0.08491247]
[1674034681517,1.8844194,21229.0,21228.0,0.08491247]
[1674034681782,2.2059994,21229.0,21228.0,0.08491247]
[1674034682323,2.2059994,21229.0,21228.0,0.084]
[1674034682590,2.23438171,21229.0,21228.0,0.084]
[1674034682845,2.66551467,21229.0,21228.0,0.084]
[1674034683144,2.23438171,21229.0,21228.0,0.084]
[1674034683917,2.57113471,21229.0,21228.0,0.084]
[1674034684172,2.57113471,21229.0,21228.0,0.0952109]
[1674034684478,2.23438171,21229.0,21228.0,0.0952109]
[1674034684759,2.54850871,21229.0,21228.0,0.0952109]
[1674034685028,2.66088267,21229.0,21228.0,0.0952109]
[1674034685285,2.23438171,21229.0,21228.0,0.0952109]
[1674034685553,1.61864731,21229.0,21228.0,0.0952109]
[1674034685859,1.29206831,21229.0,21228.0,0.0952109]
[1674034686117,2.23443138,21229.0,21228.0,0.0952109]
[1674034686378,2.55484738,21229.0,21228.0,0.0952109]
[1674034686644,2.23443138,21229.0,21228.0,0.0952109]
[1674034686908,2.01414371,21229.0,21228.0,0.0952109]
[1674034687165,2.30994168,21229.0,21228.0,0.0952109]
[1674034687426,2.74013664,21229.0,21228.0,0.0952109]
[1674034688270,2.62197568,21229.0,21228.0,0.0952109]
[1674034688483,2.30894168,21229.0,21228.0,0.0112109]
[1674034688748,2.64349368,21229.0,21228.0,0.0162109]
[1674034689026,2.64349368,21229.0,21228.0,0.0112109]
[1674034689027,2.74086764,21229.0,21228.0,0.0112109]
[1674034689295,2.75586764,21229.0,21228.0,0.0182109]
[1674034689561,3.23306933,21229.0,21228.0,0.0182109]
[1674034690959,2.202612,21229.0,21228.0,0.0182109]
[1674034691473,3.47042078,21229.0,21228.0,0.0182109]
[1674034691726,2.179399,21229.0,21228.0,0.0182109]
[1674034691988,2.80116155,21229.0,21228.0,0.0182109]
[1674034692224,3.14077555,21229.0,21228.0,0.0182109]
[1674034692484,2.122884,21229.0,21228.0,0.0182109]
[1674034692742,1.78327,21229.0,21228.0,0.0182109]
[1674034693009,2.10695,21229.0,21228.0,0.0182109]
[1674034693780,1.78327,21229.0,21228.0,0.0182109]
[1674034694050,2.094463,21229.0,21228.0,0.0182109]
[1674034694304,1.78327,21229.0,21228.0,0.0182109]
[1674034694604,3.71918266,21229.0,21228.0,0.0182109]
[1674034694876,4.13156897,21229.0,21228.0,0.0182109]
[1674034695119,3.9068087,21229.0,21228.0,0.0182109]
[1674034695686,3.83156897,21229.0,21228.0,0.0182109]
[1674034695947,3.28180535,21229.0,21228.0,0.0182109]
[1674034696758,3.6941602,21229.0,21228.0,0.0182109]
[1674034697013,3.52560655,21229.0,21228.0,0.0182109]
[1674034697283,3.88562247,21229.0,21228.0,0.0182109]
[1674034697587,3.71908232,21229.0,21228.0,0.0182109]
[1674034697845,4.43323106,21229.0,21228.0,0.0182109]
[1674034698602,4.15228899,21229.0,21228.0,0.0182109]
[1674034699081,4.15228899,21229.0,21228.0,0.0182109]
[1674034699334,4.65752506,21229.0,21228.0,0.0182109]
[1674034699591,4.70455411,21229.0,21228.0,0.0182109]
[1674034699859,4.47999692,21229.0,21228.0,0.0182109]
[1674034700395,4.11957481,21229.0,21228.0,0.0182109]
[1674034700658,4.11957481,21229.0,21228.0,0.01638982]
[1674034700659,4.9150381,21229.0,21228.0,0.01638982]
[1674034700940,6.66604344,21229.0,21228.0,0.01638982]
[1674034701212,4.9150381,21229.0,21228.0,0.01638982]
[1674034701524,5.1989465,21229.0,21228.0,0.01638982]
[1674034702581,5.20549069,21229.0,21228.0,0.01638982]
[1674034702890,4.9150381,21229.0,21228.0,0.01638982]
[1674034703416,5.26151193,21229.0,21226.0,0.017936]
[1674034703672,0.94540717,21227.0,21226.0,0.017936]
[1674034703930,2.58765887,21227.0,21226.0,0.017936]
[1674034704430,4.77162073,21227.0,21226.0,0.017936]
[1674034704702,0.2825,21226.0,21223.0,0.0178243]
[1674034704954,0.0754,21224.0,21223.0,0.0178243]
[1674034705223,1.73386769,21224.0,21223.0,0.0178243]
[1674034705749,1.7471677,21224.0,21223.0,0.0178243]
[1674034706269,1.8381677,21224.0,21223.0,0.0178243]
[1674034706522,2.05087048,21224.0,21223.0,0.0178243]
[1674034706846,2.21737048,21224.0,21223.0,0.0178243]
[1674034707112,2.14187048,21224.0,21223.0,0.0178243]
[1674034707365,1.82753248,21224.0,21223.0,0.0178243]
[1674034707621,2.13739448,21224.0,21223.0,0.0178243]
[1674034707872,1.73653248,21224.0,21223.0,0.0178243]
[1674034708172,2.3207485,21224.0,21223.0,0.0178243]
[1674034708421,2.06493548,21224.0,21223.0,0.0178243]
[1674034708714,2.15593548,21224.0,21223.0,0.0178243]
[1674034710000,2.45593548,21224.0,21223.0,0.0178243]
[1674034711070,3.47412126,21224.0,21223.0,0.0178243]
[1674034712370,3.17412126,21224.0,21223.0,0.0178243]
[1674034712630,3.47412126,21224.0,21223.0,0.0178243]
[1674034712886,2.53143548,21224.0,21223.0,0.0178243]
[1674034713425,3.85705069,21224.0,21223.0,0.0178243]
[1674034713652,3.96924439,21224.0,21223.0,0.0178243]
[1674034714420,4.13753494,21224.0,21223.0,0.0178243]
[1674034714666,4.18456399,21224.0,21223.0,0.0178243]
[1674034715954,4.7723703,21224.0,21223.0,0.0178243]
[1674034716212,5.13656764,21224.0,21223.0,0.0178243]
[1674034716521,5.13487746,21224.0,21223.0,0.0178243]
[1674034716787,5.13487746,21224.0,21219.0,0.01909933]
[1674034716788,0.28408242,21222.0,21219.0,0.01909933]
[1674034717056,4.02095501,21221.0,21219.0,0.01909933]
[1674034717562,1.86768702,21220.0,21219.0,0.01909933]
[1674034717564,1.75548453,21220.0,21219.0,0.01909933]
[1674034717823,2.69799053,21220.0,21219.0,0.01909933]
[1674034718346,1.75532569,21220.0,21219.0,0.01909933]
[1674034718882,1.84632569,21220.0,21219.0,0.01909933]
[1674034719167,1.41970769,21220.0,21219.0,0.01909933]
[1674034719426,1.51070769,21220.0,21219.0,0.01909933]
[1674034719979,1.41970769,21220.0,21219.0,0.01909933]
[1674034720244,1.51070769,21220.0,21219.0,0.01909933]
[1674034720523,1.74537169,21220.0,21219.0,0.01909933]
[1674034721322,1.81380498,21220.0,21219.0,0.01909933]
[1674034721585,1.84486069,21220.0,21219.0,0.01909933]
[1674034721860,1.51070769,21220.0,21219.0,0.01909933]
[1674034724204,1.033506,21220.0,21219.0,0.20982528]
[1674034724205,1.033506,21220.0,21219.0,0.16999933]
[1674034724466,1.033506,21220.0,21219.0,0.09449933]
[1674034724467,0.562253,21220.0,21219.0,0.09449933]
[1674034724740,0.562253,21220.0,21219.0,0.01909933]
[1674034725005,1.033506,21220.0,21219.0,0.01909933]
[1674034726856,1.69549731,21220.0,21219.0,0.01909933]
[1674034728173,1.033506,21220.0,21219.0,0.01909933]
[1674034731687,2.61663747,21220.0,21219.0,0.01909933]
[1674034731935,4.2509886,21220.0,21219.0,0.01909933]
[1674034732183,4.01154353,21220.0,21219.0,0.01909933]
[1674034732710,4.29899623,21220.0,21219.0,0.01909933]
[1674034732984,5.25062412,21220.0,21219.0,0.01909933]
[1674034733250,5.53113036,21220.0,21219.0,0.01909933]
[1674034733502,5.30672537,21220.0,21219.0,0.01909933]
[1674034734026,5.53113036,21220.0,21219.0,0.01909933]
[1674034734309,5.24377254,21220.0,21219.0,0.01909933]
[1674034734577,5.30592343,21220.0,21219.0,0.01909933]
[1674034734806,5.9786398,21220.0,21218.0,0.01847831]
[1674034735082,3.93600221,21219.0,21218.0,0.01847831]
[1674034735351,4.81231153,21219.0,21218.0,0.01847831]
[1674034735656,4.39007414,21219.0,21218.0,0.01847831]
[1674034735924,5.33823293,21219.0,21218.0,0.01847831]
[1674034736178,5.29540971,21219.0,21218.0,0.01847831]
[1674034736441,5.01568225,21219.0,21218.0,0.01847831]
[1674034736703,4.16147732,21219.0,21218.0,0.21128623]
[1674034737001,2.78859745,21219.0,21218.0,0.20920426]
[1674034737288,1.73355001,21219.0,21218.0,0.01847831]
[1674034737558,1.64255001,21219.0,21218.0,0.01847831]
[1674034737832,0.94255,21219.0,21218.0,0.01847831]
[1674034738394,1.01755,21219.0,21218.0,0.02047831]
[1674034738663,0.94255,21219.0,21218.0,0.01847831]
[1674034738926,1.41975169,21219.0,21218.0,0.01847831]
[1674034739187,1.41975169,21219.0,21218.0,0.02047831]